[Event "87th Spanish Championship 2022"]
[Site "Linares"]
[Date "2022.08.13"]
[Round "3.31"]
[White "Comellas Martos, Lidia"]
[Black "Alvarez Fernandez, Enrique"]
[Result "1/2-1/2"]
[ECO "C01"]
[WhiteElo "2132"]
[BlackElo "2329"]
[Annotator "TA"]
[PlyCount "108"]
[EventDate "2022.08.11"]
[EventType "swiss"]
[EventCountry "ESP"]
[SourceTitle "playchess.com"]
[Source "ChessBase"]
[SourceQuality "1"]
[TimeControl "5400+30"]

{[%evp 12,108,14,21,38,-1,-1,4,8,-8,-7,-11,-7,-6,0,-2,-1,0,0,0,16,9,20,7,33,33,29,29,42,0,16,0,0,0,0,0,0,0,0,-12,0,0,0,0,0,-22,0,-15,0,-29,-28,-32,-39,-38,-38,-79,-66,-47,0,0,0,-8,0,0,0,0,120,102,345,325,345,0,29986,-29978,-29979,-6790,84,89,451,466,1826,1787,809,0,0,0,0,0,0,0,0,0,0,0,0,0,0,0,8]} 1. e4 e6 {[%emt 0:00:06]} 2. d4 d5 {[%emt 0:00:08]} 3. exd5 {[%emt 0:02:48]} exd5 {[%emt 0:00:11]} 4. Bd3 {[%emt 0:00:51]} Nc6 {[%emt 0:03:20]} 5. c3 {[%emt 0:02:52]} Bd6 {[%emt 0:01:37]} 6. Nf3 {[%emt 0:01:16]} Nge7 {[%emt 0:01:29][%cal Bg8e7,Be7f5,Bf5d6][%mdl 32]} 7. O-O {[%emt 0:08:12]} O-O {C01: French: Exchange Variation.} 8. Bg5 {[%emt 0:07:12] 8.Re1 is a critical line.} f6 {[%emt 0:13:00]} 9. Bh4 {[%emt 0:02:37]} Bf5 {[%emt 0:00:28]} 10. Bxf5 {[%emt 0:00:30]} Nxf5 {[%emt 0:00:30]} 11. Bg3 {[%emt 0:00:00]} Bxg3 {[%emt 0:02:54]} 12. hxg3 {[%emt 0:00:25] [#]} Nd6 $146 {[%emt 0:06:57]} ({Predecessor:} 12... Qd7 13. Na3 Nce7 14. Nc2 c6 15. Nh2 Rae8 16. Re1 Nd6 17. Qg4 f5 18. Qg5 Ne4 {½-½ (54) Subelj,J (1653)-Mihelic,B (1794) Slovenia 2014}) 13. Qb3 {[%emt 0:10:54]} Ne7 {[%emt 0:00:51]} 14. Nbd2 {[%cal Bb1d2,Bd2f1,Bf1e3][%mdl 32]} a5 {[%emt 0:10:15]} 15. a4 {[%emt 0:05:13]} b6 {[%emt 0:05:35]} 16. Rfe1 {[%emt 0:04:46]} Qd7 {[%emt 0:02:20]} 17. Re2 {[%emt 0:04:00]} Nf7 {[%emt 0:03:15]} 18. Rae1 {[%emt 0:02:36]} Rfe8 {[%emt 0:01:13]} 19. Nf1 {[%emt 0:12:16]} Rad8 {[%emt 0:01:17]} 20. N3d2 {[%emt 0:08:48]} Kf8 {[%emt 0:01:04]} 21. f3 {[%emt 0:06:42]} Nc8 22. Rxe8+ {[%emt 0:01:54]} Rxe8 {[%emt 0:03:29]} 23. Rxe8+ {[%emt 0:00:06]} Kxe8 {[%emt 0:00:15]} 24. Ne3 {[%emt 0:00:17]} Ne7 {[%emt 0:00:25]} 25. Kf2 {[%emt 0:00:50]} Kf8 {[%emt 0:03:49][%cal Be8f8,Bf8g7,Bg7f7][%mdl 32]} 26. Qc2 {[%emt 0:02:57]} g6 {[%emt 0:00:50]} 27. b3 {[%emt 0:00:42]} Kg7 {[%emt 0:03:18]} 28. Ndf1 {[%emt 0:03:14]} Ng5 {[%emt 0:01:38]} 29. Qe2 {[%emt 0:02:27]} Kf7 {[%emt 0:01:51]} 30. Ng4 {[%emt 0:00:29][%cal Og4f6]} Qd6 {[%emt 0:02:46]} 31. Qb2 {[%emt 0:02:06]} h5 {[%emt 0:02:30]} 32. Nge3 {[%emt 0:00:19]} Ne6 {[%emt 0:00:25]} 33. b4 {[%emt 0:03:31]} axb4 {[%emt 0:07:07]} 34. cxb4 {[%emt 0:00:07]} Nc6 {[%emt 0:07:05]} (34... c5 $15 {is superior.} 35. dxc5 bxc5) 35. Nc2 $11 {[%emt 0:00:21]} g5 {[%emt 0:03:13]} 36. Qc3 {[%emt 0:03:17]} h4 {[%emt 0:01:59]} 37. a5 {[%emt 0:00:39]} bxa5 {[%emt 0:01:16]} 38. bxa5 {[%emt 0:00:05]} Na7 {[%emt 0:00:32]} (38... Ne7 $11 {keeps the balance.}) 39. Qd3 $16 {[%emt 0:01:59]} c5 $2 {[%emt 0:00:56]} (39... Nc8 $16) 40. Qh7+ $18 {[%emt 0:01:14]} Ng7 {[%emt 0:02:04]} 41. Nfe3 $2 {[%emt 0:00:30]} ({Weaker is} 41. gxh4 gxh4 42. Nce3 Qf4 43. dxc5 Qd4 $18) ({Only move:} 41. Nce3 $18) 41... Qf4 {[%emt 0:01:25][%mdl 8192] [#] Against Nf5} 42. Nxd5 $4 {[%emt 0:01:16][%mdl 8192]} (42. gxf4 Kf8 43. dxc5 Nc6 44. Nxd5 Kf7 45. f5 h3 46. Qg6+ Kf8 47. Qxf6+ Kg8 48. a6) 42... Qd2+ {[%emt 0:00:51][%mdl 64] Deflection, Double Attack} 43. Kg1 {[%emt 0:00:30]} cxd4 $2 {[%emt 0:00:33]} ({Better is} 43... hxg3 $19 {( -> ...Qc1+)} 44. Nde3 cxd4) 44. gxh4 $16 {[%emt 0:00:46] And now h5 would win. Chess con chili. White is more active.} gxh4 {[%emt 0:00:30][%mdl 8192]} (44... d3 $16 {is more resistant.} 45. Nce3 Qe1+ 46. Kh2 (46. Nf1 d2 $11) 46... Qxh4+ 47. Qxh4 gxh4) 45. Qxh4 $18 {[%emt 0:00:13]} Qxc2 {[%emt 0:03:14]} (45... Qc1+ $142 46. Kh2 Qxc2 47. Qxf6+ Kg8 48. Ne7+ (48. Qxd4 Qh7+ 49. Kg1 Qb1+ 50. Kh2 Qh7+ 51. Kg1 Qb1+ 52. Kh2 Qh7+ $11) 48... Kh8) 46. Qxf6+ {[%emt 0:01:02]} Kg8 {[%emt 0:01:00] [#]} 47. Qxd4 $2 {[%emt 0:00:31]} (47. Ne7+ $1 $18 Kh8 48. a6 (48. Qxd4 Qc1+ 49. Kf2 Qc2+ 50. Kf1 Qb1+ 51. Kf2 Qc2+ 52. Kf1 Qb1+ 53. Kf2 Qc2+ $11)) 47... Nc6 $11 {[%emt 0:00:47][%csl LRa5,LRd4] The position is equal.} 48. Qe4 {[%emt 0:00:21]} Qxe4 49. Nf6+ {[%emt 0:00:01]} Kf7 {[%emt 0:00:44]} 50. Nxe4 {[%emt 0:00:30]} Nxa5 {[%emt 0:00:07]} 51. Kf2 Nc4 52. g4 {[%emt 0:00:16]} Ne6 {[%emt 0:00:30]} 53. Kg3 {[%emt 0:00:09]} Ne5 {[%emt 0:00:20]} 54. f4 {[%emt 0:00:29]} Nxf4 {[%emt 0:00:12] Weighted Error Value: White=0.40/Black=0.66} 1/2-1/2

[Event "87th Spanish Championship 2022"]
[Site "Linares"]
[Date "2022.08.13"]
[Round "3.32"]
[White "Garcia Gonzalez, Omar"]
[Black "Alshameary Puente, Ismael"]
[Result "0-1"]
[ECO "B28"]
[WhiteElo "2094"]
[BlackElo "2352"]
[Annotator "TA"]
[PlyCount "84"]
[EventDate "2022.08.11"]
[EventType "swiss"]
[EventCountry "ESP"]
[SourceTitle "playchess.com"]
[Source "ChessBase"]
[SourceQuality "1"]
[TimeControl "5400+30"]

{[%evp 9,84,22,41,37,40,38,58,0,13,0,0,-14,-10,-40,36,-48,-32,-36,-27,-25,-16,-39,-38,-56,-17,-16,-9,-241,-227,-238,-234,-268,-271,-369,-372,-374,-315,-308,-286,-445,-432,-469,-446,-540,-535,-522,-477,-589,-456,-452,-446,-452,-452,-452,-443,-495,-476,-494,-483,-489,-479,-535,-522,-535,-534,-617,-603,-637,-629,-605,-576,-1217,-1034,-1981,-1662,-6057,-4782]} 1. e4 {[%emt 0:00:04]} c5 {[%emt 0:03:01]} 2. Nf3 {[%emt 0:00:16]} a6 {[%emt 0:00:05]} 3. c3 {[%emt 0:00:05]} d5 {[%emt 0:00:38]} 4. exd5 {[%emt 0:00:12]} Qxd5 {[%emt 0:00:06]} 5. d4 {[%emt 0:00:13]} Nc6 {[%emt 0:05:05]} 6. Be3 {[%emt 0:01:58] B28: Sicilian: 2 Nf3 a6 (O'Kelly Variation).} cxd4 {[%emt 0:05:26]} 7. cxd4 {[%emt 0:08:37]} Nf6 {[%emt 0:07:08]} 8. h3 {[%emt 0:04:39]} (8. Nc3 $14 Qd6 9. Rc1) 8... e6 {[%emt 0:05:03]} 9. Nc3 {[%emt 0:04:56]} Qd8 {[%emt 0:02:37]} 10. Bc4 {[%emt 0:05:21]} b5 {[%emt 0:10:30]} 11. Bb3 {[%emt 0:17:07]} Bb7 {[%emt 0:16:06]} (11... Na5 $15) 12. O-O {[%emt 0:11:22] [#]} (12. d5 $1 $14 Na5 13. dxe6 Qxd1+ 14. Rxd1 (14. Bxd1 fxe6 15. O-O Nc4 $11) 14... Nxb3 15. exf7+ (15. axb3 fxe6 16. O-O Bxf3 $11) 15... Kxf7 16. axb3) 12... Na5 $146 {[%emt 0:04:45]} ({Predecessor:} 12... Bb4 13. d5 exd5 14. Nxd5 Nxd5 15. Bxd5 O-O 16. Qb3 Be7 17. Rfd1 Qb8 18. Rac1 Na5 19. Qc3 Bxd5 20. Rxd5 {0-1 (29) Salden,F (1513)-Worm,A Rostock 2003}) 13. Bc2 {[%emt 0:01:21]} Be7 {[%emt 0:00:32]} 14. Ne5 {[%emt 0:02:36]} Rc8 {[%emt 0:02:45]} 15. Qd3 {[%emt 0:22:35]} Nd5 {[%emt 0:05:39]} 16. a3 {[%emt 0:02:35] Inhibits Nb4.} Nc4 {[%emt 0:05:28]} 17. Nxc4 {[%emt 0:02:54]} Rxc4 {[%emt 0:00:32]} 18. Ne4 $2 {[%emt 0:04:56] This costs White the game.} (18. Nxd5 $11 {and White has nothing to worry.} Qxd5 19. f3) 18... Nxe3 $19 {[%emt 0:04:13]} 19. fxe3 {[%emt 0:00:08] [#]} Qd5 $1 {[%emt 0:00:07]} 20. Rf2 {[%emt 0:02:49] [#]} Rxc2 {[%emt 0:02:49][%mdl 512]} 21. Qxc2 {[%emt 0:00:14] Black must now prevent Nc5.} (21. Rxc2 Qxe4) 21... Qxe4 {[%emt 0:00:07]} 22. Qc7 {[%emt 0:00:09]} Bf6 {[%emt 0:04:25]} 23. Qd6 {[%emt 0:03:39]} Qc6 {[%emt 0:01:43] Prevents Rc1.} 24. Qb8+ {[%emt 0:00:38]} (24. Qxc6+ $142 Bxc6 25. Rc1) 24... Bd8 {[%emt 0:01:01][%cal Bf6d8,Bd8c7,Bc7g3][%mdl 32] Black is clearly winning.} 25. Raf1 {[%emt 0:00:48]} O-O {[%emt 0:00:22] Threatens to win with ...Bc7.} 26. Qg3 {[%emt 0:01:32]} Bc7 {[%emt 0:00:55]} 27. Qg5 {[%emt 0:00:57]} Qd6 {[%emt 0:02:15][%csl Gc7][%cal Rd6h2]} 28. Rf4 {[%emt 0:00:06]} Qd5 {[%emt 0:00:31]} 29. Qxd5 {[%emt 0:00:57]} Bxd5 {[%emt 0:00:02]} 30. R4f2 {[%emt 0:00:16]} Be4 {[%emt 0:00:44] Prevents Rc2.} 31. Rc1 {[%emt 0:00:09]} Bg3 {[%emt 0:01:04]} 32. Rff1 {[%emt 0:00:01]} f5 {[%emt 0:00:34]} 33. Rc3 {[%emt 0:01:13]} h5 {[%emt 0:01:39]} 34. Rfc1 {[%emt 0:00:09]} f4 {[%emt 0:01:25]} 35. exf4 {[%emt 0:01:23]} Bxf4 {[%emt 0:00:01] A strong pair of Bishops.} 36. Re1 {[%emt 0:00:21]} Bd5 {[%emt 0:00:07]} 37. Rc5 {[%emt 0:00:39]} Bg3 {[%emt 0:00:25]} 38. Re2 {[%emt 0:00:30] Inhibits Bf2+.} Bc4 {[%emt 0:01:15]} 39. Rxc4 {[%emt 0:00:09]} bxc4 {[%emt 0:00:01]} 40. Rxe6 {[%emt 0:00:10]} Rf2 {[%emt 0:00:21] And now ...h4 would win.} 41. Re3 {[%emt 0:00:31]} h4 {[%emt 0:00:07]} 42. d5 {[%emt 0:01:23]} Rxb2 {[%emt 0:01:01] Weighted Error Value: White=0.80/Black=0.15 (very precise)} 0-1

[Event "87th Spanish Championship 2022"]
[Site "Linares"]
[Date "2022.08.13"]
[Round "3.33"]
[White "Fernandez Lopez, Ruben"]
[Black "Serrano Almendros, Angel"]
[Result "1-0"]
[ECO "C07"]
[WhiteElo "2324"]
[BlackElo "2049"]
[Annotator "TA"]
[PlyCount "87"]
[EventDate "2022.08.11"]
[EventType "swiss"]
[EventCountry "ESP"]
[SourceTitle "playchess.com"]
[Source "ChessBase"]
[SourceQuality "1"]
[TimeControl "5400+30"]

{[%evp 21,87,0,0,0,0,-5,-2,-28,-17,-25,0,0,0,0,124,-13,-23,-20,-14,-16,-19,-8,351,-2,760,747,749,745,997,984,1212,629,615,584,553,404,421,421,421,421,421,421,454,409,451,451,404,436,499,482,492,483,460,412,425,410,539,537,525,527,497,485,582,587,586,575,548,517]} 1. e4 {[%emt 0:00:03]} e6 {[%emt 0:00:04]} 2. d4 {[%emt 0:00:03]} d5 {[%emt 0:00:04]} 3. Nd2 {[%emt 0:00:03]} c5 {[%emt 0:00:05]} 4. Ngf3 {[%emt 0:00:05]} cxd4 {[%emt 0:00:25]} 5. exd5 {[%emt 0:00:05]} Qxd5 {[%emt 0:00:06]} 6. Bc4 {[%emt 0:00:04]} Qd6 {[%emt 0:00:06]} 7. Qe2 {[%emt 0:00:37]} Nf6 {[%emt 0:02:10]} 8. Nb3 {[%emt 0:00:05]} Nc6 {[%emt 0:02:37]} 9. Bg5 {[%emt 0:00:15]} a6 {[%emt 0:16:49]} 10. O-O-O {[%emt 0:01:52]} b5 {[%emt 0:00:12]} 11. Bd3 {[%emt 0:01:00]} Be7 {[%emt 0:01:09]} 12. Nbxd4 {[%emt 0:01:31] C07: French Tarrasch: 3...c5, 4 Ngf3 and 4 exd5 Qxd5.} Nxd4 {[%emt 0:00:57]} 13. Nxd4 {[%emt 0:00:02][%cal Od4f5]} Qd5 {[%emt 0:01:09] Inhibits Nf5.} 14. Bxf6 {[%emt 0:04:03] The position is equal.} (14. f4 $5) 14... Bxf6 {[%emt 0:00:30]} (14... gxf6 15. Be4 Qg5+ 16. Kb1 $16) 15. Kb1 {[%emt 0:09:26] And now Be4 would win.} Rb8 {[%emt 0:18:48]} ({Much less strong is} 15... Bxd4 16. Be4 Qc5 17. Bxa8 $16) (15... Qxd4 $2 16. Bxb5+ $1 {[%mdl 512]} axb5 17. Rxd4 Bxd4 18. Rd1 $18) (15... Qxg2 $2 16. Be4 Qg5 17. Bc6+ Kf8 18. Bxa8 $18) (15... Bb7 $5 {[%cal Rf6d4]} 16. Nxb5 O-O-O $16) 16. Be4 {[%emt 0:00:42]} Qc5 {[%emt 0:01:01]} 17. Bc6+ {[%emt 0:13:52]} Ke7 {[%emt 0:02:43]} (17... Kf8 $11 18. Qe3 (18. Qe4 Rb6 $11) 18... Kg8) 18. Qe4 {[%emt 0:00:04] [#] White is more active.} (18. Qe3 $1 $16 {[%cal Od4f5] aiming for Nf5+!} Qb6 19. Qf4) 18... Rb6 $146 {[%emt 0:16:54] Hoping for ...Bxd4.} ({Predecessor:} 18... Bxd4 19. Rxd4 Rb6 20. Ba8 Rd6 21. Rxd6 Qxd6 22. Qh4+ f6 23. Bf3 Bd7 24. Rd1 Qc5 {½-½ (65) Lakos,N (2415)-Michna,M (2335) Zagan 1997}) 19. Ba8 {[%emt 0:00:14]} Bd7 {[%emt 0:07:00][%cal Oh8a8] Strongly threatening ...Rxa8!} 20. Nb3 {[%emt 0:01:34][%cal Bd4b3,Bb3a5,Ba5c6][%mdl 32]} Qc4 {[%emt 0:00:31]} 21. Qe3 $132 {[%emt 0:01:09][%mdl 2048] [#] White is not holding back. The board is on fire.} Rbb8 {[%emt 0:02:32][%mdl 8192] [#] White now steadily converts the win.} (21... Rc8 $1 $11 {and Black is okay.} 22. Be4 Qc7) 22. Qa7 $2 {[%emt 0:01:17] [#]} (22. Rxd7+ $1 $18 {[%mdl 512]} Kxd7 23. Qa7+ Kc8 24. Nc5) 22... Rbd8 $2 {[%emt 0:01:15][%mdl 8192]} (22... Rhc8 $1 $11 23. Qxd7+ (23. Rxd7+ Ke8 $11) 23... Kf8) 23. Na5 $18 {[%emt 0:00:21]} Qc8 {[%emt 0:03:26]} 24. Nc6+ {[%emt 0:00:09]} Ke8 {[%emt 0:00:32]} 25. Nxd8 {[%emt 0:00:17]} Kxd8 {[%emt 0:01:18]} 26. Bb7 {[%emt 0:00:37]} Qc7 {[%emt 0:00:16]} 27. Qa8+ {[%emt 0:00:35]} Ke7 {[%emt 0:00:03]} 28. Rxd7+ {[%emt 0:00:49]} Qxd7 {[%emt 0:00:10]} 29. Qxh8 {[%emt 0:00:04]} Qxb7 {[%emt 0:02:50][%mdl 4096] Endgame KQR-KQB} 30. Rd1 {[%emt 0:00:04][%csl Gd1][%cal Rh8d8]} Qc7 {[%emt 0:01:45] Against Qd8+} 31. Qxh7 {[%emt 0:00:10]} g6 {[%emt 0:02:41]} 32. Qh3 {[%emt 0:00:05]} b4 {[%emt 0:00:29]} 33. Qd3 {[%emt 0:00:20]} a5 {[%emt 0:00:12]} 34. a3 {[%emt 0:00:22]} Be5 {[%emt 0:02:13]} 35. axb4 {[%emt 0:00:11]} axb4 {[%emt 0:00:01]} 36. Qb5 {[%emt 0:00:19]} Bd6 {[%emt 0:00:13]} 37. Qg5+ {[%emt 0:00:05]} Ke8 {[%emt 0:00:05]} 38. h4 {[%emt 0:00:55]} Be7 {[%emt 0:00:32]} 39. Qb5+ {[%emt 0:00:04] White is clearly winning.} Kf8 {[%emt 0:00:10]} 40. h5 {[%emt 0:00:13]} gxh5 {[%emt 0:00:25]} 41. Qxh5 {[%emt 0:00:17][%cal Rh5h8]} Bf6 {[%emt 0:00:04] Inhibits Qh8+.} 42. Qb5 {[%emt 0:00:12]} Qf4 {[%emt 0:00:08]} 43. Qc5+ {[%emt 0:00:43]} Kg7 {[%emt 0:00:12]} 44. Rd3 {[%emt 0:00:04] Weighted Error Value: White=0.57/Black=0.51} 1-0

[Event "87th Spanish Championship 2022"]
[Site "Linares"]
[Date "2022.08.13"]
[Round "3.34"]
[White "Hernandez Tellez, Claudia"]
[Black "Masague Artero, Guerau"]
[Result "0-1"]
[ECO "B33"]
[WhiteElo "2020"]
[BlackElo "2319"]
[Annotator "TA"]
[PlyCount "76"]
[EventDate "2022.08.11"]
[EventType "swiss"]
[EventCountry "ESP"]
[SourceTitle "playchess.com"]
[Source "ChessBase"]
[SourceQuality "1"]
[TimeControl "5400+30"]

{[%evp 30,76,28,17,21,19,27,28,111,77,83,12,22,7,7,7,8,0,0,-40,-47,-310,-67,-345,-247,-238,-233,-382,-365,-372,-366,-535,-534,-681,-747,-687,-490,-471,-319,-359,-311,-4810,-4802,-29986,-29987,-29987,-29988,-29988,-29989]} 1. e4 {[%emt 0:00:05]} c5 {[%emt 0:07:42]} 2. Nf3 {[%emt 0:00:22][%cal Bg1f3,Bf3d4,Bd4b5,Bb5a3,Ba3c2,Bc2e3][%mdl 32]} Nc6 {[%emt 0:00:20]} 3. d4 {[%emt 0:00:29]} cxd4 {[%emt 0:00:14]} 4. Nxd4 {[%emt 0:00:08]} Nf6 {[%emt 0:00:47]} 5. Nc3 {[%emt 0:00:52]} e5 {[%emt 0:02:01]} 6. Ndb5 {[%emt 0:00:17]} d6 {[%emt 0:02:54]} 7. Bg5 {[%emt 0:00:12]} a6 {[%emt 0:00:05]} 8. Na3 {[%emt 0:00:06]} b5 {[%emt 0:00:05]} 9. Bxf6 {[%emt 0:00:11]} gxf6 {[%emt 0:01:37]} 10. Nd5 {[%emt 0:00:16]} f5 {[%emt 0:01:24]} 11. c3 {[%emt 0:00:09]} Bg7 {[%emt 0:01:54]} 12. exf5 {[%emt 0:00:12]} Bxf5 {[%emt 0:00:23]} 13. Nc2 {[%emt 0:00:42]} O-O {[%emt 0:07:25]} 14. Nce3 {[%emt 0:00:22]} Be6 {[%emt 0:01:59]} 15. Bd3 {[%emt 0:00:32]} f5 {[%emt 0:00:35]} 16. O-O {[%emt 0:00:12]} Kh8 {[%emt 0:10:56] B33: Sicilian: Pelikan and Sveshnikov Variations.} 17. Qh5 {[%emt 0:14:38][%cal Re3f5]} e4 {[%emt 0:05:47]} 18. Bc2 {[%emt 0:00:33]} Ra7 {[%emt 0:16:26]} (18... Ne5 $11 {remains equal.}) 19. Nf4 {[%emt 0:07:03] Pair of Knights!} Qf6 {[%emt 0:00:26] [#]} 20. g4 $146 {[%emt 0:11:02]} (20. Bb3 $16 Bd7 21. Ned5) ({Predecessor:} 20. Nxe6 Qxe6 21. Bb3 Qe5 22. Rad1 Ne7 23. f4 Qc5 24. Qe2 b4 25. cxb4 Qxb4 26. Kh1 {1-0 (50) Wagener,C (2247)-Gengler,P (2189) Luxembourg 2011}) 20... Ne7 $11 {[%emt 0:01:19]} 21. Nxe6 {[%emt 0:18:13]} Qxe6 {[%emt 0:00:36]} 22. gxf5 {[%emt 0:02:11]} Nxf5 {[%emt 0:01:51]} 23. Bb3 {[%emt 0:01:27]} Qe5 {[%emt 0:01:03][%cal Of5d4]} 24. Nxf5 {[%emt 0:12:53]} Rxf5 {[%emt 0:00:33]} 25. Qe2 {[%emt 0:00:22][%mdl 8192]} (25. Qh3 $1 $15) 25... Bh6 $2 $40 {[%emt 0:13:46][%mdl 128] White needs to defend precisely.} ({Weaker is} 25... Rh5 26. f4 exf3 27. Qxe5 Bxe5 28. Rxf3 $17) ({Black should play} 25... Rf3 $19 {[%cal Oe5h2] ( -> ...Qxh2+!)} 26. Rfe1 Qh5 27. Qxe4 Be5) 26. f3 $2 {[%emt 0:14:27][%mdl 8192]} ({Avoid the trap} 26. Qg4 $2 Rg7 27. Qxg7+ Kxg7 $19) (26. Kh1 $1 $15) 26... exf3 {[%emt 0:04:26]} 27. Qxe5+ {[%emt 0:06:34]} dxe5 {[%emt 0:00:05]} 28. Rad1 {[%emt 0:00:13]} (28. Rae1 $142) 28... e4 $19 {[%emt 0:02:23]} 29. Rd8+ {[%emt 0:02:44]} Kg7 {[%emt 0:03:33] Hoping for ...e3.} 30. Bc2 {[%emt 0:04:22]} (30. Re8 {was necessary.} e3 31. Bc2 f2+ 32. Kh1) 30... Re7 {[%emt 0:01:20]} 31. Kf2 {[%emt 0:01:20]} e3+ {[%emt 0:01:09]} 32. Ke1 {[%emt 0:00:06] [#]} Bg5 $1 {[%emt 0:01:01]} 33. Rd4 {[%emt 0:01:32] Prevents Bh4+.} (33. Bxf5 $2 {loses.} Bh4+ 34. Kd1 e2+ 35. Kc2 exf1=Q) 33... Rf6 {[%emt 0:04:46] And now ...e2 would win.} 34. Rg4 {[%emt 0:00:14]} e2 {[%emt 0:00:50] White must now prevent ...Kh6.} 35. Rf2 $2 {[%emt 0:01:13]} (35. Rxg5+ Kh6 36. Rxf3 Rxf3 37. Rf5) 35... Kh6 {[%emt 0:00:14][%cal Og5d2]} 36. Be4 {[%emt 0:00:13] [#]} Bd2+ $1 {[%emt 0:03:19][%mdl 512] Black mates.} 37. Kxd2 {[%emt 0:00:15]} Rd6+ {[%emt 0:00:07]} 38. Kc2 {[%emt 0:01:22]} e1=Q {[%emt 0:00:18] Weighted Error Value: White=1.29/Black=0.50} 0-1

[Event "87th Spanish Championship 2022"]
[Site "Linares"]
[Date "2022.08.13"]
[Round "3.35"]
[White "Sanleon Pravisano, Nieves"]
[Black "Luque Saiz, Andres"]
[Result "0-1"]
[ECO "D18"]
[WhiteElo "1986"]
[BlackElo "2289"]
[Annotator "TA"]
[PlyCount "92"]
[EventDate "2022.08.11"]
[EventType "swiss"]
[EventCountry "ESP"]
[SourceTitle "playchess.com"]
[Source "ChessBase"]
[SourceQuality "1"]
[TimeControl "5400+30"]

{[%evp 27,92,2,9,13,0,0,11,0,0,6,-8,-10,75,74,154,122,94,-7,-7,-21,-20,-33,-21,-33,-33,-42,-32,-44,0,-115,-115,-109,-96,-164,-89,-253,-225,-477,-394,-391,-338,-394,-379,-350,-350,-347,-347,-296,-296,-550,-525,-595,-575,-1094,-1079,-1054,-1013,-948,-949,-911,-901,-1681,-1476,-1367,-1367,-1185,-1052]} 1. d4 {[%emt 0:00:02]} d5 {[%emt 0:00:07]} 2. c4 {[%emt 0:00:07]} c6 {[%emt 0:00:03]} 3. Nc3 {[%emt 0:00:06]} Nf6 {[%emt 0:00:04]} 4. Nf3 {[%emt 0:00:08]} dxc4 {[%emt 0:00:04]} 5. a4 {[%emt 0:00:05]} Bf5 {[%emt 0:00:07]} 6. e3 {[%emt 0:00:13][%cal Be2e3,Be3e4,Be4e5][%mdl 32]} e6 {[%emt 0:00:11]} 7. Bxc4 {[%emt 0:00:08]} Bb4 {[%emt 0:00:14]} 8. O-O {[%emt 0:02:28]} Nbd7 {[%emt 0:00:10]} 9. Qe2 {[%emt 0:07:25]} O-O {[%emt 0:01:55]} 10. e4 {[%emt 0:12:45]} Bg6 {[%emt 0:04:51]} 11. Bd3 {[%emt 0:03:14]} Bh5 {[%emt 0:00:42]} 12. Bf4 {[%emt 0:05:18]} Re8 {[%emt 0:05:23]} 13. e5 {[%emt 0:13:03]} Nd5 {[%emt 0:00:08]} 14. Nxd5 {[%emt 0:04:47]} cxd5 {[%emt 0:02:44]} 15. Qe3 {[%emt 0:01:45] D19: Slav Defence: 5 a4 Bf5 6 e3: Main line with 9 Qe2.} Rc8 {[%emt 0:08:26]} 16. Ng5 {[%emt 0:07:15] [#]} Nf8 $146 {[%emt 0:03:59] [#]} ({Predecessor:} 16... Bg6 17. Bxg6 fxg6 18. Qh3 Nf8 19. Qb3 Qb6 20. Rac1 h6 21. Nf3 g5 22. Bd2 g4 23. Qxb4 gxf3 24. Qxb6 axb6 {0-1 (44) Blalock,R (2205)-Santos,C (2405) Lisbon 2003}) 17. Nxh7 $1 {[%emt 0:13:13] The position is equal.} Nxh7 {[%emt 0:01:06]} 18. Bxh7+ {[%emt 0:00:05]} Kxh7 {[%emt 0:00:33]} 19. Qh3 {[%emt 0:00:06]} Kg6 {[%emt 0:03:42]} (19... g6 $11 20. g4 Rh8) 20. g4 {[%emt 0:00:58]} Bxg4 {[%emt 0:01:56]} 21. Qxg4+ $16 {[%emt 0:00:06]} Kh7 {[%emt 0:00:04] [#]} 22. Kh1 {[%emt 0:01:14]} ({Much worse is} 22. Bg5 Be7 23. f4 Kg8 $11) (22. Qh3+ $1 $16 Kg8 23. Rac1) 22... Rh8 $1 $11 {[%emt 0:01:53]} 23. Rg1 {[%emt 0:07:25][%csl Gg1][%cal Rg4g7]} g6 {[%emt 0:00:21]} 24. Rg3 {[%emt 0:02:58]} Be7 {[%emt 0:02:45]} 25. Rag1 {[%emt 0:02:45][%cal Og4h5] Threatening mate with Qh5+!} Kg7 {[%emt 0:01:11]} 26. Qf3 {[%emt 0:01:56]} Rh4 {[%emt 0:05:54]} 27. Rg4 {[%emt 0:03:54]} Rc4 {[%emt 0:05:09] ...Qh8 is the strong threat.} 28. Qe3 {[%emt 0:02:13] [#]} (28. Rxh4 $11 Bxh4 29. Bh6+ Kg8 30. Qh5) 28... Qh8 $1 $17 {[%emt 0:06:53]} 29. Rxh4 {[%emt 0:07:48]} Qxh4 {[%emt 0:00:11]} 30. Rg3 {[%emt 0:00:29]} (30. b3 $17 Rc2 31. Rg3) 30... Qh5 {[%emt 0:00:39]} (30... Rxa4 $19 {Threatens to win with ...Qh5.} 31. Kg2 Qh5) 31. Qd3 $2 {[%emt 0:00:32] This move loses the game for White.} (31. b3 $17 {was worth a try.} Rc2 32. Qf3 Qxf3+ 33. Rxf3) 31... Bh4 {[%emt 0:04:05]} 32. Rf3 {[%emt 0:01:18] [#]} (32. Rg2 {is the only way for White.}) 32... Rxd4 $3 {[%emt 0:01:24][%mdl 512]} 33. Qxd4 {[%emt 0:00:19]} Qxf3+ $19 {[%emt 0:00:03][%mdl 4096] Endgame KQB-KQB} 34. Kg1 {[%emt 0:00:01]} Qg4+ {[%emt 0:03:39]} 35. Kf1 {[%emt 0:00:25][%cal Of4h6]} Bg5 {[%emt 0:02:35] Inhibits Bh6+.} 36. Be3 {[%emt 0:00:13]} Qxd4 {[%emt 0:00:26]} 37. Bxd4 {[%emt 0:00:02] KB-KB} a6 {[%emt 0:00:37]} 38. b3 $2 {[%emt 0:00:22]} (38. Kg2 {was the only chance.}) 38... Bf4 {[%emt 0:00:19] Black is clearly winning.} 39. Kg2 {[%emt 0:01:49]} g5 {[%emt 0:00:30]} 40. h4 {[%emt 0:00:30]} gxh4 {[%emt 0:00:26]} 41. Kh3 {[%emt 0:00:05]} Kg6 {[%emt 0:00:24] Strongly threatening ...Kf5.} 42. Kg4 {[%emt 0:00:20] [#]} h3 $1 {[%emt 0:00:22]} 43. Kxh3 {[%emt 0:00:25]} Kf5 {[%emt 0:00:04]} 44. Kg2 {[%emt 0:00:07]} Bxe5 {[%emt 0:00:05]} 45. Bc5 {[%emt 0:00:04]} Ke4 {[%emt 0:00:07]} 46. Kf1 {[%emt 0:00:31]} Kd3 {[%emt 0:00:16] Weighted Error Value: White=0.73/Black=0.15 (very precise)} 0-1